[Event "Ruzomberok Closed 2020 - 3. turnaj"]
[Site "Ruzomberok, Slovakia"]
[Date "2020.09.05"]
[Round "6.3"]
[White "Ciglian, Michal"]
[Black "Gasper, Jaroslav"]
[Result "0-1"]
[TimeControl "10m + 5s"]
[WhiteElo "1388"]
[BlackElo "1721"]

1. d4 {[%clk 00:10:07]} {[%emt 00:00:02]} d5 {[%clk 00:10:09]} {[%emt
00:00:02]} 2. c4 {[%clk 00:10:11]} {[%emt 00:00:01]} e6 {[%clk 00:10:13]}
{[%emt 00:00:01]} 3. Nc3 {[%clk 00:10:15]} {[%emt 00:00:01]} Bb4 {[%clk
00:10:16]} {[%emt 00:00:02]} 4. Bd2 {[%clk 00:10:18]} {[%emt 00:00:01]} Nf6
{[%clk 00:10:15]} {[%emt 00:00:06]} 5. e3 {[%clk 00:10:20]} {[%emt 00:00:02]}
c5 {[%clk 00:10:17]} {[%emt 00:00:05]} 6. a3 {[%clk 00:10:16]} {[%emt
00:00:09]} Bxc3 {[%clk 00:10:20]} {[%emt 00:00:01]} 7. Bxc3 {[%clk 00:10:20]}
{[%emt 00:00:02]} cxd4 {[%clk 00:10:23]} {[%emt 00:00:01]} 8. Bxd4 {[%clk
00:10:24]} {[%emt 00:00:02]} Nc6 {[%clk 00:10:18]} {[%emt 00:00:11]} 9. Nf3
{[%clk 00:10:24]} {[%emt 00:00:04]} Nxd4 {[%clk 00:09:53]} {[%emt 00:00:30]} 10.
Nxd4 {[%emt 00:00:23]} Ne4 {[%clk 00:09:37]} 11. cxd5 {[%clk 00:10:11]} {[%emt
00:00:21]} Qa5+ {[%clk 00:09:31]} {[%emt 00:00:10]} 12. b4 {[%clk 00:10:12]}
{[%emt 00:00:05]} Qxd5 {[%clk 00:09:33]} {[%emt 00:00:02]} 13. Bb5+ {[%clk
00:09:35]} {[%emt 00:00:43]} Bd7 {[%clk 00:09:09]} {[%emt 00:00:29]} 14. Bxd7+
{[%clk 00:09:36]} {[%emt 00:00:04]} Qxd7 {[%clk 00:08:54]} {[%emt 00:00:20]} 15.
O-O {[%clk 00:09:36]} {[%emt 00:00:04]} O-O {[%clk 00:08:51]} {[%emt 00:00:08]}
16. Qd3 {[%clk 00:09:31]} {[%emt 00:00:10]} Nf6 {[%clk 00:08:33]} {[%emt
00:00:23]} 17. Qb3 {[%clk 00:09:28]} {[%emt 00:00:08]} e5 {[%clk 00:07:49]}
{[%emt 00:00:49]} 18. Nf3 {[%clk 00:09:28]} {[%emt 00:00:05]} Qf5 {[%clk
00:07:22]} {[%emt 00:00:32]} 19. Qb1 {[%clk 00:09:14]} {[%emt 00:00:18]} e4
{[%clk 00:06:58]} {[%emt 00:00:30]} 20. Nd4 {[%clk 00:09:18]} {[%emt 00:00:02]}
Qh5 {[%clk 00:06:57]} {[%emt 00:00:06]} 21. h3 {[%clk 00:09:19]} {[%emt
00:00:04]} g5 {[%clk 00:06:49]} {[%emt 00:00:13]} 22. Qb2 {[%emt 00:00:35]} Qg6
{[%clk 00:06:23]} 23. Ne2 {[%clk 00:09:12]} {[%emt 00:00:12]} h5 {[%clk
00:06:17]} {[%emt 00:00:11]} 24. Rad1 {[%clk 00:09:13]} {[%emt 00:00:05]} Rad8
{[%clk 00:06:10]} {[%emt 00:00:12]} 25. Qe5 {[%clk 00:08:58]} {[%emt 00:00:20]}
Rfe8 {[%clk 00:03:30]} {[%emt 00:02:44]} 26. Rxd8 {[%clk 00:08:52]} {[%emt
00:00:11]} Rxd8 {[%clk 00:03:35]} 27. Nd4 {[%clk 00:08:56]} {[%emt 00:00:01]}
g4 {[%clk 00:03:22]} {[%emt 00:00:17]} 28. Nf5 {[%clk 00:08:44]} {[%emt
00:00:17]} Re8 {[%clk 00:02:02]} {[%emt 00:01:26]} 29. Ne7+ {[%clk 00:08:35]}
{[%emt 00:00:13]} Rxe7 {[%clk 00:02:06]} 30. Qxe7 {[%clk 00:08:39]} {[%emt
00:00:02]} gxh3 {[%clk 00:02:10]} {[%emt 00:00:01]} 31. Qd8+ {[%clk 00:08:43]}
{[%emt 00:00:02]} Kg7 {[%clk 00:02:14]} 32. g3 {[%clk 00:08:47]} {[%emt
00:00:01]} Qg4 {[%clk 00:02:12]} {[%emt 00:00:06]} 33. Qd1 {[%clk 00:08:49]}
{[%emt 00:00:03]} Qf5 {[%clk 00:02:10]} {[%emt 00:00:08]} 34. Kh2 {[%clk
00:08:46]} {[%emt 00:00:08]} Ng4+ {[%clk 00:02:07]} {[%emt 00:00:08]} 35. Kh1
{[%clk 00:08:44]} {[%emt 00:00:06]} Nxf2+ {[%clk 00:02:04]} {[%emt 00:00:08]}
36. Rxf2 {[%clk 00:07:23]} {[%emt 00:01:27]} Qxf2 {[%clk 00:02:06]} {[%emt
00:00:02]} 37. Qd4+ {[%clk 00:07:27]} {[%emt 00:00:02]} Kh6 {[%clk 00:01:06]}
{[%emt 00:01:05]} 38. Qxe4 {[%clk 00:07:29]} {[%emt 00:00:02]} Qxg3 {[%clk
00:00:31]} {[%emt 00:00:40]} 39. Qxb7 {[%clk 00:07:02]} {[%emt 00:00:32]} Qxe3
{[%clk 00:00:35]} 40. Qxf7 {[%clk 00:07:06]} {[%emt 00:00:01]} Qe4+ {[%clk
00:00:34]} {[%emt 00:00:06]} 0-1

[Event "Ruzomberok Closed 2020 - 3. turnaj"]
[Site "Ruzomberok, Slovakia"]
[Date "2020.09.05"]
[Round "6.4"]
[White "Konkol, Emil"]
[Black "Sustek, Adam"]
[Result "1/2-1/2"]
[TimeControl "10m + 5s"]
[WhiteElo "1799"]
[BlackElo "1377"]

1. e4 {[%clk 00:10:08]} e6 {[%clk 00:10:09]} {[%emt 00:00:02]} 2. d4 {[%clk
00:10:12]} {[%emt 00:00:01]} d5 {[%clk 00:10:13]} {[%emt 00:00:01]} 3. Nf3
{[%clk 00:10:07]} {[%emt 00:00:09]} Nf6 {[%clk 00:10:12]} {[%emt 00:00:05]} 4.
e5 {[%clk 00:10:11]} {[%emt 00:00:02]} Nfd7 {[%clk 00:10:15]} {[%emt 00:00:02]}
5. Nc3 {[%clk 00:10:12]} {[%emt 00:00:04]} c5 {[%clk 00:10:16]} {[%emt
00:00:04]} 6. Bb5 {[%clk 00:10:11]} {[%emt 00:00:06]} a6 {[%clk 00:09:38]}
{[%emt 00:00:43]} 7. Bxd7+ {[%clk 00:10:14]} {[%emt 00:00:02]} Bxd7 {[%clk
00:09:38]} {[%emt 00:00:05]} 8. O-O {[%clk 00:10:17]} {[%emt 00:00:02]} Nc6
{[%clk 00:09:41]} {[%emt 00:00:02]} 9. Be3 {[%clk 00:10:00]} {[%emt 00:00:21]}
c4 {[%clk 00:08:16]} {[%emt 00:01:30]} 10. Ne2 {[%clk 00:09:59]} {[%emt
00:00:06]} Be7 {[%clk 00:08:16]} {[%emt 00:00:05]} 11. c3 {[%clk 00:10:03]}
{[%emt 00:00:02]} O-O {[%clk 00:08:18]} {[%emt 00:00:03]} 12. Ng3 {[%clk
00:09:52]} {[%emt 00:00:15]} b5 {[%clk 00:08:11]} {[%emt 00:00:12]} 13. h3
{[%clk 00:09:55]} {[%emt 00:00:03]} b4 {[%clk 00:08:05]} {[%emt 00:00:11]} 14.
Nh2 {[%clk 00:09:53]} {[%emt 00:00:06]} bxc3 {[%clk 00:07:48]} {[%emt
00:00:21]} 15. bxc3 {[%clk 00:09:57]} {[%emt 00:00:02]} Qa5 {[%clk 00:07:41]}
{[%emt 00:00:13]} 16. Qc2 {[%clk 00:09:49]} {[%emt 00:00:12]} Rab8 {[%clk
00:07:37]} {[%emt 00:00:10]} 17. Rfb1 {[%clk 00:09:49]} {[%emt 00:00:04]} Ba3
{[%clk 00:07:27]} {[%emt 00:00:15]} 18. Bc1 {[%clk 00:09:25]} {[%emt 00:00:30]}
Na7 {[%clk 00:06:52]} {[%emt 00:00:40]} 19. Bxa3 {[%clk 00:09:20]} {[%emt
00:00:09]} Qxa3 {[%clk 00:06:54]} {[%emt 00:00:03]} 20. Ne2 {[%clk 00:09:06]}
{[%emt 00:00:20]} Ba4 {[%clk 00:06:29]} {[%emt 00:00:29]} 21. Qc1 {[%clk
00:09:02]} {[%emt 00:00:10]} Qxc1+ {[%clk 00:06:08]} {[%emt 00:00:26]} 22. Nxc1
{[%clk 00:09:05]} {[%emt 00:00:02]} Bc2 {[%clk 00:05:37]} {[%emt 00:00:35]} 23.
Rb4 {[%clk 00:09:03]} {[%emt 00:00:07]} a5 {[%clk 00:04:47]} {[%emt 00:00:55]}
24. Rxb8 {[%clk 00:08:56]} {[%emt 00:00:11]} Rxb8 {[%clk 00:04:51]} {[%emt
00:00:02]} 25. Nf3 {[%clk 00:08:55]} {[%emt 00:00:06]} Nb5 {[%clk 00:04:48]}
{[%emt 00:00:07]} 26. Ne1 {[%clk 00:08:52]} {[%emt 00:00:08]} Bf5 {[%clk
00:04:19]} {[%emt 00:00:33]} 27. g4 {[%clk 00:08:53]} {[%emt 00:00:05]} Bg6
{[%clk 00:04:19]} {[%emt 00:00:05]} 28. Ne2 {[%clk 00:08:35]} {[%emt 00:00:23]}
Bd3 {[%clk 00:04:18]} {[%emt 00:00:07]} 29. Kf1 {[%clk 00:08:24]} {[%emt
00:00:16]} Bxe2+ {[%clk 00:04:07]} {[%emt 00:00:17]} 30. Kxe2 {[%clk 00:08:27]}
Nxc3+ {[%clk 00:04:08]} {[%emt 00:00:04]} 31. Kd2 {[%clk 00:08:07]} {[%emt
00:00:25]} Ne4+ {[%clk 00:04:09]} {[%emt 00:00:05]} 32. Ke3 {[%clk 00:08:11]}
{[%emt 00:00:01]} Rb2 {[%clk 00:03:34]} {[%emt 00:00:39]} 33. f3 {[%clk
00:08:05]} {[%emt 00:00:11]} Nc3 {[%clk 00:03:26]} {[%emt 00:00:13]} 34. a3
{[%clk 00:07:54]} {[%emt 00:00:16]} Re2+ {[%clk 00:03:06]} {[%emt 00:00:24]} 35.
Kf4 {[%clk 00:07:56]} {[%emt 00:00:03]} Kf8 {[%clk 00:02:51]} {[%emt 00:00:21]}
36. Kg3 {[%clk 00:07:53]} {[%emt 00:00:07]} Ke7 {[%clk 00:02:39]} {[%emt
00:00:19]} 37. Ng2 {[%clk 00:07:56]} {[%emt 00:00:01]} Na4 {[%clk 00:02:33]}
{[%emt 00:00:10]} 38. Rb1 {[%clk 00:07:56]} {[%emt 00:00:06]} Rb2 {[%clk
00:02:36]} {[%emt 00:00:03]} 39. Ra1 {[%clk 00:07:43]} {[%emt 00:00:17]} Rd2
{[%clk 00:01:46]} {[%emt 00:00:54]} 40. Rb1 {[%clk 00:07:42]} {[%emt 00:00:07]}
Rxd4 {[%clk 00:01:46]} {[%emt 00:00:05]} 41. Rb7+ {[%clk 00:07:29]} {[%emt
00:00:18]} Ke8 {[%clk 00:01:50]} {[%emt 00:00:01]} 42. Ra7 {[%clk 00:07:16]}
{[%emt 00:00:18]} c3 {[%clk 00:01:34]} {[%emt 00:00:21]} 43. Ne3 {[%clk
00:07:15]} {[%emt 00:00:06]} Rd2 {[%clk 00:01:06]} {[%emt 00:00:32]} 44. Rxa5
{[%clk 00:07:15]} {[%emt 00:00:05]} Nb2 {[%clk 00:00:47]} {[%emt 00:00:24]} 45.
Rc5 {[%clk 00:07:11]} {[%emt 00:00:09]} Na4 {[%clk 00:00:24]} {[%emt 00:00:29]}
46. Ra5 {[%clk 00:07:08]} {[%emt 00:00:08]} Nb2 {[%clk 00:00:27]} {[%emt
00:00:01]} 47. Rc5 {[%clk 00:07:11]} {[%emt 00:00:01]} Na4 {[%clk 00:00:29]}
{[%emt 00:00:04]} 48. Ra5 {[%clk 00:06:44]} {[%emt 00:00:32]} Nb2 {[%clk
00:00:31]} {[%emt 00:00:01]} 49. Rc5 {[%emt 00:00:24]} 1/2-1/2

[Event "Ruzomberok Closed 2020 - 3. turnaj"]
[Site "Ruzomberok, Slovakia"]
[Date "2020.09.05"]
[Round "6.5"]
[White "Novak, Michal"]
[Black "Gasper, Peter"]
[Result "0-1"]
[TimeControl "10m + 5s"]
[WhiteElo "1096"]
[BlackElo "1650"]

1. e4 {[%clk 00:10:08]} {[%emt 00:00:02]} c5 {[%clk 00:10:09]} {[%emt
00:00:01]} 2. Nf3 {[%clk 00:10:11]} {[%emt 00:00:01]} Nc6 {[%clk 00:10:13]}
{[%emt 00:00:02]} 3. d4 {[%clk 00:10:15]} cxd4 {[%clk 00:10:17]} {[%emt
00:00:02]} 4. Nxd4 {[%clk 00:10:18]} {[%emt 00:00:01]} e5 {[%clk 00:10:21]} 5.
Nb3 {[%clk 00:10:21]} {[%emt 00:00:03]} d6 {[%clk 00:10:22]} {[%emt 00:00:04]}
6. Nc3 {[%clk 00:10:23]} {[%emt 00:00:02]} Nf6 {[%clk 00:10:26]} {[%emt
00:00:02]} 7. Bb5 {[%clk 00:10:25]} {[%emt 00:00:04]} a6 {[%clk 00:10:28]}
{[%emt 00:00:03]} 8. Bxc6+ {[%clk 00:10:24]} {[%emt 00:00:05]} bxc6 {[%clk
00:10:32]} {[%emt 00:00:01]} 9. O-O {[%clk 00:10:24]} {[%emt 00:00:05]} Be7
{[%clk 00:10:36]} 10. Be3 {[%clk 00:10:22]} {[%emt 00:00:07]} O-O {[%clk
00:10:34]} {[%emt 00:00:07]} 11. f4 {[%clk 00:10:24]} {[%emt 00:00:03]} Ng4
{[%clk 00:10:16]} {[%emt 00:00:24]} 12. Qe2 {[%clk 00:10:09]} {[%emt 00:00:20]}
Nxe3 {[%clk 00:10:13]} {[%emt 00:00:08]} 13. Qxe3 {[%clk 00:10:12]} {[%emt
00:00:02]} exf4 {[%clk 00:10:14]} {[%emt 00:00:04]} 14. Qxf4 {[%clk 00:10:10]}
{[%emt 00:00:06]} Bf6 {[%clk 00:09:36]} {[%emt 00:00:43]} 15. Qe3 {[%clk
00:09:57]} {[%emt 00:00:18]} Bb7 {[%clk 00:09:12]} {[%emt 00:00:28]} 16. Rab1
{[%clk 00:09:54]} {[%emt 00:00:08]} c5 {[%clk 00:09:14]} {[%emt 00:00:04]} 17.
Nd5 {[%clk 00:09:54]} {[%emt 00:00:04]} Be5 {[%clk 00:09:02]} {[%emt 00:00:17]}
18. Nd2 {[%clk 00:09:44]} {[%emt 00:00:15]} Bd4 {[%clk 00:09:03]} {[%emt
00:00:04]} 19. Qxd4 {[%clk 00:09:37]} {[%emt 00:00:12]} cxd4 {[%clk 00:09:06]}
{[%emt 00:00:01]} 20. Nf4 {[%clk 00:09:35]} {[%emt 00:00:07]} Rc8 {[%clk
00:08:48]} {[%emt 00:00:23]} 21. c3 {[%clk 00:09:23]} {[%emt 00:00:16]} Qa5
{[%clk 00:08:30]} {[%emt 00:00:23]} 22. b4 {[%clk 00:09:06]} {[%emt 00:00:23]}
Qxa2 {[%clk 00:08:24]} {[%emt 00:00:11]} 23. Nf3 {[%clk 00:09:06]} {[%emt
00:00:05]} dxc3 {[%clk 00:08:22]} {[%emt 00:00:07]} 24. Nd4 {[%clk 00:08:37]}
{[%emt 00:00:34]} Bxe4 {[%clk 00:08:14]} {[%emt 00:00:13]} 25. Rbc1 {[%clk
00:08:38]} {[%emt 00:00:04]} Qd2 {[%clk 00:07:58]} {[%emt 00:00:20]} 26. Nfe2
{[%clk 00:08:36]} {[%emt 00:00:07]} Qe3+ {[%clk 00:07:56]} {[%emt 00:00:06]} 27.
Kh1 {[%clk 00:08:33]} {[%emt 00:00:09]} Rc4 {[%clk 00:07:42]} {[%emt 00:00:20]}
28. Rfd1 {[%clk 00:08:13]} {[%emt 00:00:25]} c2 {[%clk 00:07:18]} {[%emt
00:00:27]} 29. Rf1 {[%clk 00:07:59]} {[%emt 00:00:20]} Rxb4 {[%clk 00:06:52]}
{[%emt 00:00:32]} 30. Nxc2 {[%clk 00:07:46]} {[%emt 00:00:16]} Bxc2 {[%clk
00:06:54]} {[%emt 00:00:05]} 31. Rxc2 {[%clk 00:07:49]} {[%emt 00:00:02]} a5
{[%clk 00:06:41]} {[%emt 00:00:18]} 32. h3 {[%clk 00:07:28]} {[%emt 00:00:26]}
a4 {[%clk 00:06:41]} {[%emt 00:00:05]} 33. Ra2 {[%clk 00:07:14]} {[%emt
00:00:18]} d5 {[%clk 00:06:41]} {[%emt 00:00:06]} 34. Rf3 {[%clk 00:07:09]}
{[%emt 00:00:08]} Qe5 {[%clk 00:06:06]} {[%emt 00:00:39]} 35. Nc3 {[%clk
00:06:53]} {[%emt 00:00:25]} Rf4 {[%clk 00:05:51]} {[%emt 00:00:19]} 36. Rxf4
{[%clk 00:06:46]} {[%emt 00:00:12]} Qxf4 {[%clk 00:05:54]} {[%emt 00:00:02]} 37.
Nxd5 {[%clk 00:06:49]} {[%emt 00:00:02]} Qc4 {[%clk 00:05:48]} {[%emt
00:00:12]} 38. Ne7+ {[%clk 00:06:43]} {[%emt 00:00:11]} Kh8 {[%clk 00:05:52]}
{[%emt 00:00:01]} 39. Ra1 {[%clk 00:06:40]} {[%emt 00:00:08]} g6 {[%clk
00:05:55]} {[%emt 00:00:02]} 40. Rxa4 {[%clk 00:06:28]} {[%emt 00:00:17]} Qxa4
{[%clk 00:05:58]} {[%emt 00:00:01]} 41. Nd5 {[%emt 00:00:04]} Rd8 {[%clk
00:06:00]} 42. Nf6 {[%clk 00:06:34]} {[%emt 00:00:04]} Rd1+ {[%clk 00:05:58]}
{[%emt 00:00:06]} 43. Kh2 {[%emt 00:00:06]} Qf4+ {[%clk 00:06:02]} 44. g3
{[%clk 00:06:37]} {[%emt 00:00:01]} Qxf6 {[%clk 00:06:06]} {[%emt 00:00:02]} 45.
Kg2 {[%clk 00:06:39]} {[%emt 00:00:03]} Qf2+ {[%clk 00:06:09]} {[%emt
00:00:02]} 46. Kxf2 {[%clk 00:06:42]} {[%emt 00:00:02]} Rd2+ {[%clk 00:06:13]}
{[%emt 00:00:01]} 47. Ke3 {[%clk 00:06:45]} {[%emt 00:00:01]} Rh2 {[%clk
00:06:16]} {[%emt 00:00:01]} 48. g4 {[%clk 00:06:45]} {[%emt 00:00:05]} Rxh3+
{[%clk 00:06:20]} {[%emt 00:00:01]} 49. Kf4 {[%clk 00:06:50]} {[%emt 00:00:01]}
Kg7 {[%clk 00:06:23]} {[%emt 00:00:02]} 50. g5 {[%clk 00:06:52]} {[%emt
00:00:03]} h6 {[%clk 00:06:25]} {[%emt 00:00:03]} 51. Kg4 {[%clk 00:06:52]}
{[%emt 00:00:04]} Rh1 {[%clk 00:06:27]} {[%emt 00:00:03]} 52. gxh6+ {[%clk
00:06:55]} {[%emt 00:00:02]} Rxh6 {[%clk 00:06:31]} {[%emt 00:00:01]} 53. Kg5
{[%clk 00:06:59]} {[%emt 00:00:01]} Rh5+ {[%clk 00:06:34]} {[%emt 00:00:01]} 54.
Kg4 {[%clk 00:07:03]} {[%emt 00:00:01]} Kf6 {[%clk 00:06:38]} {[%emt 00:00:01]}
55. Kf4 {[%clk 00:07:07]} Rh4+ {[%clk 00:06:42]} {[%emt 00:00:01]} 56. Kg3
{[%emt 00:00:02]} Ra4 {[%clk 00:06:46]} 57. Kf3 {[%clk 00:07:14]} {[%emt
00:00:01]} Ke5 {[%clk 00:06:50]} 58. Kg3 {[%clk 00:07:18]} Kf5 {[%clk
00:06:54]} {[%emt 00:00:01]} 59. Kh3 {[%clk 00:07:23]} f6 {[%clk 00:06:58]}
{[%emt 00:00:01]} 60. Kg3 {[%clk 00:07:26]} {[%emt 00:00:01]} g5 {[%clk
00:07:02]} 61. Kf3 {[%clk 00:07:29]} {[%emt 00:00:02]} Ra3+ {[%clk 00:07:06]}
62. Ke2 {[%clk 00:07:34]} Kf4 {[%clk 00:07:10]} {[%emt 00:00:01]} 63. Kd1
{[%clk 00:07:38]} Ke3 {[%clk 00:07:14]} {[%emt 00:00:01]} 64. Kc1 {[%clk
00:07:42]} Ra2 {[%clk 00:07:18]} {[%emt 00:00:01]} 65. Kb1 {[%clk 00:07:46]}
Rd2 {[%clk 00:07:22]} 66. Kc1 {[%clk 00:07:50]} {[%emt 00:00:01]} f5 67. Kb1
{[%emt 00:00:01]} f4 {[%clk 00:07:24]} 68. Ka1 {[%clk 00:07:54]} {[%emt
00:00:02]} f3 {[%clk 00:07:29]} {[%emt 00:00:01]} 69. Kb1 {[%clk 00:07:58]} f2
{[%clk 00:07:33]} 70. Ka1 {[%clk 00:08:02]} {[%emt 00:00:01]} f1=Q# {[%clk
00:07:24]} {[%emt 00:00:02]} 0-1

[Event "Ruzomberok Closed 2020 - 3. turnaj"]
[Site "Ruzomberok, Slovakia"]
[Date "2020.09.05"]
[Round "6.6"]
[White "Jurky, Marian"]
[Black "Hajtmansky, Milan"]
[Result "1-0"]
[TimeControl "10m + 5s"]
[WhiteElo "1347"]
[BlackElo "1590"]

1. d4 {[%clk 00:10:07]} {[%emt 00:00:02]} e6 {[%clk 00:10:09]} {[%emt
00:00:02]} 2. c4 {[%clk 00:10:11]} {[%emt 00:00:01]} Be7 {[%clk 00:10:13]}
{[%emt 00:00:01]} 3. Nc3 {[%clk 00:10:14]} {[%emt 00:00:02]} b6 {[%clk
00:10:12]} {[%emt 00:00:05]} 4. Nf3 {[%clk 00:10:17]} {[%emt 00:00:01]} Bb7
{[%clk 00:10:16]} {[%emt 00:00:01]} 5. e3 {[%clk 00:10:20]} {[%emt 00:00:03]}
Nf6 {[%clk 00:10:18]} {[%emt 00:00:03]} 6. Be2 {[%clk 00:10:21]} {[%emt
00:00:04]} O-O {[%clk 00:10:11]} {[%emt 00:00:12]} 7. O-O {[%clk 00:10:23]}
{[%emt 00:00:03]} d6 {[%clk 00:10:06]} {[%emt 00:00:09]} 8. e4 {[%clk
00:10:26]} {[%emt 00:00:02]} Nbd7 {[%clk 00:10:09]} {[%emt 00:00:02]} 9. d5
{[%clk 00:10:29]} {[%emt 00:00:02]} exd5 {[%emt 00:00:15]} 10. exd5 {[%clk
00:10:15]} {[%emt 00:00:15]} c6 {[%clk 00:09:47]} {[%emt 00:00:22]} 11. dxc6
{[%clk 00:09:47]} {[%emt 00:00:32]} Bxc6 {[%clk 00:09:51]} {[%emt 00:00:01]} 12.
Bf4 {[%clk 00:09:51]} {[%emt 00:00:02]} h6 {[%clk 00:09:28]} {[%emt 00:00:28]}
13. Nd5 {[%clk 00:09:51]} {[%emt 00:00:05]} Bxd5 {[%clk 00:09:29]} {[%emt
00:00:03]} 14. cxd5 {[%clk 00:09:53]} {[%emt 00:00:03]} Nh7 {[%clk 00:09:13]}
{[%emt 00:00:20]} 15. Nd4 {[%clk 00:09:51]} {[%emt 00:00:08]} Bf6 {[%clk
00:08:42]} {[%emt 00:00:36]} 16. Bxd6 {[%clk 00:09:31]} {[%emt 00:00:25]} Re8
{[%clk 00:08:29]} {[%emt 00:00:18]} 17. Bb5 {[%clk 00:09:22]} {[%emt 00:00:14]}
Bxd4 {[%clk 00:07:49]} {[%emt 00:00:45]} 18. Qxd4 {[%clk 00:09:25]} {[%emt
00:00:03]} Rc8 {[%clk 00:07:40]} {[%emt 00:00:11]} 19. Rfe1 {[%clk 00:09:28]}
{[%emt 00:00:05]} Rxe1+ {[%clk 00:07:02]} {[%emt 00:00:42]} 20. Rxe1 {[%clk
00:09:31]} {[%emt 00:00:02]} Qf6 {[%clk 00:06:44]} {[%emt 00:00:22]} 21. Qxf6
{[%clk 00:08:49]} {[%emt 00:00:48]} Ndxf6 {[%clk 00:06:48]} {[%emt 00:00:01]}
22. h3 {[%clk 00:08:46]} {[%emt 00:00:08]} Nxd5 {[%clk 00:06:37]} {[%emt
00:00:15]} 23. Rd1 {[%clk 00:08:06]} {[%emt 00:00:46]} Nhf6 {[%clk 00:06:29]}
{[%emt 00:00:13]} 24. b3 {[%clk 00:07:25]} {[%emt 00:00:46]} Rc3 {[%clk
00:06:06]} {[%emt 00:00:19]} 25. Bc4 {[%clk 00:07:03]} {[%emt 00:02:04]} Ne3
{[%emt 00:01:26]} 26. fxe3 {[%clk 00:06:54]} {[%emt 00:00:12]} Rxe3 {[%clk
00:03:30]} {[%emt 00:00:03]} 27. Kf2 {[%clk 00:06:42]} {[%emt 00:00:18]} Re4
{[%emt 00:00:33]} 28. Re1 {[%clk 00:06:33]} {[%emt 00:00:12]} Rxe1 {[%clk
00:02:59]} {[%emt 00:00:10]} 29. Kxe1 {[%clk 00:06:35]} {[%emt 00:00:02]} Ne4
{[%clk 00:02:52]} {[%emt 00:00:12]} 30. Bb8 {[%clk 00:06:32]} {[%emt 00:00:09]}
a5 {[%clk 00:02:48]} {[%emt 00:00:09]} 31. Bc7 {[%clk 00:06:33]} {[%emt
00:00:03]} Nc3 {[%clk 00:02:28]} {[%emt 00:00:26]} 32. Bxb6 {[%clk 00:06:13]}
{[%emt 00:00:24]} a4 {[%clk 00:02:07]} {[%emt 00:00:26]} 33. Bd4 {[%clk
00:05:48]} {[%emt 00:00:30]} Nxa2 {[%clk 00:01:50]} {[%emt 00:00:22]} 34. bxa4
{[%clk 00:05:51]} {[%emt 00:00:03]} Nb4 {[%clk 00:01:43]} {[%emt 00:00:11]} 35.
Bc5 {[%clk 00:05:52]} {[%emt 00:00:04]} Nc2+ {[%clk 00:01:11]} {[%emt
00:00:37]} 36. Kd2 {[%clk 00:05:57]} {[%emt 00:00:24]} Na1 {[%clk 00:00:39]}
{[%emt 00:00:22]} 37. a5 {[%clk 00:05:59]} {[%emt 00:00:04]} Kh7 {[%clk
00:00:34]} {[%emt 00:00:07]} 38. a6 {[%clk 00:06:03]} {[%emt 00:00:04]} f5
{[%clk 00:00:31]} {[%emt 00:00:07]} 39. a7 {[%clk 00:06:06]} {[%emt 00:00:02]}
f4 {[%clk 00:00:26]} {[%emt 00:00:10]} 40. a8=Q {[%clk 00:06:08]} {[%emt
00:00:04]} 1-0

[Event "Ruzomberok Closed 2020 - 3. turnaj"]
[Site "Ruzomberok, Slovakia"]
[Date "2020.09.05"]
[Round "6.7"]
[White "Demko, Ladislav"]
[Black "Grib, Stefan"]
[Result "1-0"]
[TimeControl "10m + 5s"]
[WhiteElo "1701"]
[BlackElo "1429"]

1. d4 {[%clk 00:10:08]} {[%emt 00:00:01]} f5 {[%clk 00:10:09]} {[%emt
00:00:01]} 2. c4 {[%clk 00:10:12]} {[%emt 00:00:02]} Nf6 {[%clk 00:10:12]}
{[%emt 00:00:02]} 3. Nc3 {[%clk 00:10:15]} {[%emt 00:00:02]} e6 {[%clk
00:10:16]} {[%emt 00:00:01]} 4. Nf3 {[%clk 00:10:17]} {[%emt 00:00:03]} b6
{[%clk 00:10:20]} {[%emt 00:00:01]} 5. e3 {[%clk 00:10:16]} {[%emt 00:00:06]}
Bb7 {[%clk 00:10:24]} {[%emt 00:00:02]} 6. Be2 {[%clk 00:10:17]} {[%emt
00:00:03]} Bb4 {[%clk 00:10:26]} {[%emt 00:00:03]} 7. a3 {[%clk 00:10:17]}
{[%emt 00:00:05]} Bxc3+ {[%clk 00:10:29]} {[%emt 00:00:02]} 8. bxc3 {[%clk
00:10:20]} {[%emt 00:00:03]} O-O {[%clk 00:10:30]} {[%emt 00:00:04]} 9. O-O
{[%clk 00:10:21]} {[%emt 00:00:05]} d6 {[%clk 00:10:29]} {[%emt 00:00:06]} 10.
Bb2 {[%clk 00:10:16]} {[%emt 00:00:10]} Nbd7 {[%clk 00:10:31]} {[%emt
00:00:03]} 11. h3 {[%clk 00:09:58]} {[%emt 00:00:22]} Ne4 {[%clk 00:10:08]}
{[%emt 00:00:29]} 12. Nh2 {[%clk 00:09:42]} {[%emt 00:00:21]} Qe8 {[%clk
00:10:05]} {[%emt 00:00:08]} 13. Bf3 {[%emt 00:00:06]} Ndf6 {[%emt 00:00:13]}
14. Qe2 {[%clk 00:09:15]} {[%emt 00:00:12]} g5 {[%clk 00:09:04]} {[%emt
00:01:07]} 15. Rad1 {[%clk 00:08:46]} {[%emt 00:00:34]} h5 {[%clk 00:08:39]}
{[%emt 00:00:31]} 16. d5 {[%clk 00:08:33]} {[%emt 00:00:18]} e5 {[%clk
00:08:41]} {[%emt 00:00:03]} 17. Bxe4 {[%clk 00:08:27]} {[%emt 00:00:10]} Nxe4
{[%clk 00:08:43]} {[%emt 00:00:03]} 18. Qf3 {[%clk 00:07:55]} {[%emt 00:00:36]}
Qg6 {[%clk 00:07:57]} {[%emt 00:00:52]} 19. Kh1 {[%clk 00:07:30]} {[%emt
00:00:30]} Kf7 {[%clk 00:07:07]} {[%emt 00:00:55]} 20. g4 {[%clk 00:07:18]}
{[%emt 00:00:17]} Ke7 {[%clk 00:06:36]} {[%emt 00:00:36]} 21. gxh5 {[%clk
00:07:16]} {[%emt 00:00:06]} Qh6 {[%clk 00:06:31]} {[%emt 00:00:11]} 22. Qe2
{[%clk 00:06:25]} {[%emt 00:00:55]} Rh8 {[%clk 00:06:18]} {[%emt 00:00:19]} 23.
Qf3 {[%emt 00:00:18]} Kf6 {[%emt 00:00:13]} 24. Ng4+ {[%clk 00:05:53]} {[%emt
00:00:06]} 1-0